fUSD/lending_fUSD_20260130
["ID","MTS","AMOUNT","RATE_DAILY","PERIOD"]
[404070352,1769784640363,-500.0,0.00013698,2]
[404070353,1769784640379,-500.0,0.00013698,2]
[404070354,1769784640390,-500.0,0.00013698,2]
[404070355,1769784640402,-500.0,0.00013698,2]
[404070356,1769784640414,-500.0,0.00013698,2]
[404070357,1769784640426,-500.0,0.00013698,2]
[404070358,1769784640439,-500.0,0.00013698,2]
[404070359,1769784640452,-500.0,0.00013698,2]
[404070360,1769784640465,-500.0,0.00013698,2]
[404070361,1769784640478,-500.0,0.00013698,2]
[404070362,1769784640489,-500.0,0.00013698,2]
[404070363,1769784640500,-500.0,0.00013698,2]
[404070364,1769784640512,-500.0,0.00013698,2]
[404070365,1769784640523,-500.0,0.00013698,2]
[404070366,1769784640534,-500.0,0.00013698,2]
[404070367,1769784640547,-500.0,0.00013698,2]
[404070368,1769784640564,-208.77047208,0.00013698,2]
[404070369,1769784640577,-502.05200047,0.00013698,2]
[404070370,1769784640589,-519.46286686,0.00013698,2]
[404070371,1769784640601,-500.0,0.00013698,2]
[404070372,1769784640612,-500.0,0.00013698,2]
[404070373,1769784640623,-500.0,0.00013698,2]
[404070374,1769784640633,-500.0,0.00013698,2]
[404070375,1769784640643,-500.0,0.00013698,2]
[404070376,1769784640652,-500.0,0.00013698,2]
[404070377,1769784640662,-500.0,0.00013698,2]
[404070378,1769784640674,-500.0,0.00013698,2]
[404070379,1769784640686,-500.0,0.00013698,2]
[404070380,1769784640698,-500.0,0.00013698,2]
[404070381,1769784640711,-500.0,0.00013698,2]
[404070382,1769784640723,-500.0,0.00013698,2]
[404070383,1769784640734,-500.0,0.00013698,2]
[404070384,1769784640745,-500.0,0.00013698,2]
[404070385,1769784640761,-500.0,0.00013698,2]
[404070386,1769784640773,-500.0,0.00013698,2]
[404070387,1769784640785,-500.0,0.00013698,2]
[404070388,1769784640798,-500.0,0.00013698,2]
[404070389,1769784640809,-500.0,0.00013698,2]
[404070390,1769784640822,-500.0,0.00013698,2]
[404070391,1769784640835,-500.0,0.00013698,2]
[404070392,1769784640848,-500.0,0.00013698,2]
[404070393,1769784640862,-500.0,0.00013698,2]
[404070394,1769784640873,-500.0,0.00013698,2]
[404070395,1769784640885,-500.0,0.00013698,2]
[404070396,1769784640898,-500.0,0.00013698,2]
[404070397,1769784640912,-500.0,0.00013698,2]
[404070398,1769784640923,-500.0,0.00013698,2]
[404070399,1769784640934,-500.0,0.00013698,2]
[404070400,1769784640950,-500.0,0.00013698,2]
[404070401,1769784640963,-522.88632763,0.00013698,2]
[404070402,1769784640975,-500.0,0.00013698,2]
[404070403,1769784640988,-500.0,0.00013698,2]
[404070404,1769784641000,-500.0,0.00013698,2]
[404070405,1769784641010,-500.0,0.00013698,2]
[404070406,1769784641021,-500.0,0.00013698,2]
[404070407,1769784641031,-500.0,0.00013698,2]
[404070408,1769784641042,-500.0,0.00013698,2]
[404070409,1769784641052,-500.0,0.00013698,2]
[404070410,1769784641063,-500.0,0.00013698,2]
[404070411,1769784641075,-500.0,0.00013698,2]
[404070412,1769784641099,-500.0,0.00013698,2]
[404070413,1769784641114,-500.0,0.00013698,2]
[404070414,1769784641128,-500.0,0.00013698,2]
[404070415,1769784641143,-500.0,0.00013698,2]
[404070416,1769784641156,-500.0,0.00013698,2]
[404070417,1769784641170,-500.0,0.00013698,2]
[404070418,1769784641183,-500.0,0.00013698,2]
[404070419,1769784641196,-500.0,0.00013698,2]
[404070420,1769784641206,-500.0,0.00013698,2]
[404070421,1769784641216,-500.0,0.00013698,2]
[404070422,1769784641226,-340.51796879,0.00013698,2]
[404070423,1769784641236,-500.0,0.00013698,2]
[404070424,1769784641247,-500.0,0.00013698,2]
[404070425,1769784641257,-500.0,0.00013698,2]
[404070426,1769784641268,-500.0,0.00013698,2]
[404070427,1769784641279,-500.0,0.00013698,2]
[404070428,1769784641292,-541.12934131,0.00013698,2]
[404070429,1769784641304,-500.0,0.00013698,2]
[404070430,1769784641316,-500.0,0.00013698,2]
[404070431,1769784641326,-500.0,0.00013698,2]
[404070432,1769784641336,-500.0,0.00013698,2]
[404070433,1769784641347,-500.0,0.00013698,2]
[404070434,1769784641358,-244.79656408,0.00013698,2]
[404070435,1769784641368,-500.0,0.00013698,2]
[404070436,1769784641379,-500.0,0.00013698,2]
[404070437,1769784641390,-500.0,0.00013698,2]
[404070438,1769784641401,-500.0,0.00013698,2]
[404070439,1769784641413,-512.41131785,0.00013698,2]
[404070440,1769784641425,-500.0,0.00013698,2]
[404070441,1769784641451,-500.0,0.00013698,2]
[404070442,1769784641463,-500.0,0.00013698,2]
[404070443,1769784641476,-500.0,0.00013698,2]
[404070444,1769784641488,-500.0,0.00013698,2]
[404070445,1769784641500,-500.0,0.00013698,2]
[404070446,1769784641512,-500.0,0.00013698,2]
[404070447,1769784641524,-500.0,0.00013698,2]
[404070448,1769784641536,-326.5559361,0.00013698,2]
[404070449,1769784641548,-500.0,0.00013698,2]
[404070450,1769784641560,-500.0,0.00013698,2]
[404070451,1769784641573,-500.0,0.00013698,2]
[404070452,1769784641584,-500.0,0.00013698,2]
[404070453,1769784641597,-500.0,0.00013698,2]
[404070454,1769784641609,-396.00925811,0.00013698,2]
[404070455,1769784641621,-500.0,0.00013699,2]
[404070456,1769784641632,-500.0,0.00013699,2]
[404070457,1769784641644,-500.0,0.00013699,2]
[404070458,1769784641655,-261.02783056,0.00013699,2]
[404070459,1769784641670,-193.0,0.00013702,2]
[404070460,1769784641681,-1205.0,0.00013711,2]
[404070461,1769784641693,-219.0,0.0001373,2]
[404070462,1769784641704,-699.09,0.00013732,2]
[404070463,1769784641715,-4909.27,0.00013732,2]
[404070464,1769784641726,-1014.0,0.00013738,2]
[404070465,1769784641737,-500.0,0.00013739,2]
[404070466,1769784641749,-229.0,0.00013751,2]
[404070467,1769784641760,-1014.0,0.00013765,2]
[404070468,1769784641771,-4909.27,0.00013774,2]
[404070469,1769784641782,-432.0,0.00013779,2]
[404070470,1769784641794,-366.0,0.00013793,2]
[404070471,1769784641805,-224.0,0.00013806,2]
[404070472,1769784641816,-500.0,0.00013815,2]
[404070473,1769784641828,-4909.27,0.00013816,2]
[404070474,1769784641839,-356.0,0.0001382,2]
[404070475,1769784641853,-429.0,0.00013834,2]
[404070476,1769784641866,-912.0,0.00013847,2]
[404070477,1769784641877,-4909.27,0.00013857,2]
[404070478,1769784641890,-464.0,0.00013861,2]
[404070479,1769784641902,-273.0,0.00013874,2]
[404070480,1769784641915,-863.0,0.00013876,2]
[404070481,1769784641927,-1675.0,0.00013902,2]
[404070482,1769784641938,-1893.0,0.00013903,2]
[404070483,1769784641948,-1362.0,0.00013929,2]
[404070484,1769784641959,-162.0,0.00013931,2]
[404070485,1769784641971,-1648.0,0.00013959,2]
[404070486,1769784641982,-1624.0,0.00013986,2]
[404070487,1769784641993,-200.0,0.00014006,2]
[404070488,1769784642005,-500.0,0.00014006,2]
[404070489,1769784642016,-200.0,0.00014006,2]
[404070490,1769784642029,-699.09,0.00014006,2]
[404070491,1769784642040,-500.0,0.00014013,2]
[404070492,1769784642051,-1036.0,0.00014014,2]
[404070493,1769784642063,-200.0,0.0001403,2]
[404070494,1769784642075,-1155.0,0.00014042,2]
[404070495,1769784642090,-479.1,0.00014042,2]
[404070496,1769784642101,-497.0,0.0001407,2]
[404070497,1769784642112,-165.0,0.00014097,2]
[404070498,1769784642123,-263.53,0.00014197,2]
[404070499,1769784642134,-699.09,0.0001428,2]
[404070500,1769784642146,-329.85,0.00014283,2]
[404070501,1769784642157,-500.0,0.00014287,2]
[404070502,1769784642170,-434.79,0.00014357,2]
[404070503,1769784642181,-183.75,0.00014373,2]
[404070504,1769784642191,-151.0,0.0001439,2]
[404070505,1769784642202,-151.0,0.00014392,2]
[404070506,1769784642212,-151.0,0.00014396,2]
[404070507,1769784642222,-151.0,0.000144,2]
[404070508,1769784642232,-151.0,0.00014402,2]
[404070509,1769784642243,-151.0,0.00014402,2]
[404070510,1769784642253,-151.0,0.00014402,2]
[404070511,1769784642264,-500.0,0.0001445,2]
[404070513,1769784642274,-500.0,0.0001445,2]
[404070515,1769784642284,-255.0,0.00014474,2]
[404070517,1769784642294,-200.0,0.00014554,2]
[404070520,1769784642305,-500.0,0.00014554,2]
[404070523,1769784642315,-200.0,0.00014554,2]
[404070526,1769784642325,-699.09,0.00014554,2]
[404070530,1769784642336,-500.0,0.00014561,2]
[404070533,1769784642346,-420.0,0.00014652,2]
[404070536,1769784642357,-150.0,0.00014652,2]
[404070537,1769784642367,-500.0,0.00014665,2]
[404070538,1769784642377,-150.0,0.00014665,2]
[404070539,1769784642387,-291.51281962,0.00014693,2]
[404070540,1769784642398,-250.0,0.00014701,2]
[404070541,1769784642409,-250.0,0.00014701,2]
[404070542,1769784642421,-194.82973596,0.00014701,2]
[404070543,1769784642431,-600.0,0.00014701,2]
[404070544,1769784642442,-600.0,0.00014701,2]
[404070545,1769784642453,-600.0,0.00014701,2]
[404070546,1769784642464,-478.64857644,0.00014701,2]
[404070547,1769784642474,-300.0,0.00014701,2]
[404070548,1769784642486,-2500.0,0.00014701,2]
[404070549,1769784642497,-1680.0,0.00014702,2]
[404070550,1769784642508,-193.0,0.00014703,2]
[404070551,1769784642520,-300.0,0.00014703,2]
[404070552,1769784642531,-250.0,0.00014703,2]
[404070553,1769784642542,-500.0,0.0001472,2]
[404070554,1769784642554,-500.0,0.00014775,2]
[404070555,1769784642566,-699.09,0.00014828,2]
[404070556,1769784642575,-500.0,0.00014829,2]
[404070557,1769784642586,-500.0,0.00014835,2]
[404070558,1769784642596,-500.0,0.00014884,2]
[404070559,1769784642607,-10003.0,0.000149,2]
[404070560,1769784642616,-289.8103178,0.00014939,2]
[404070561,1769784642627,-604.58205548,0.00014943,2]
[404070562,1769784642637,-263.53,0.00014944,2]
[404070563,1769784642647,-200.0,0.00015102,2]
[404070564,1769784642658,-500.0,0.00015102,2]
[404070565,1769784642672,-210.42094214,0.00015102,2]
[404070566,1769784642682,-699.09,0.00015102,2]
[404070567,1769784642692,-500.0,0.00015109,2]
[404070568,1769784642702,-500.0,0.00015182,2]
[404070569,1769784642712,-500.0,0.00015182,2]
[404070570,1769784642724,-500.0,0.00015182,2]
[404070571,1769784642734,-500.0,0.00015182,2]
[404070572,1769784642744,-2815.19211496,0.0001522,2]
[404070573,1769784642755,-7429.33653207,0.0001522,2]
[404070574,1769784642765,-530.17,0.00015312,2]
[404070575,1769784642775,-500.0,0.00015312,2]
[404070576,1769784642785,-699.13649203,0.00015376,2]
[404070577,1769784642796,-200.0,0.0001565,2]
[404070578,1769784642807,-500.0,0.0001565,2]
[404070579,1769784642817,-433.0,0.00015677,2]
[404070580,1769784642828,-263.53,0.00015691,2]
[404070581,1769784642838,-162.24,0.0001585,2]
[404070582,1769784642849,-162.0,0.000159,2]
[404070583,1769784642860,-1153.6744562,0.00015921,2]
[404070584,1769784642870,-652.99854233,0.0001596,2]
[404070585,1769784642881,-318.0,0.00016062,2]
[404070586,1769784642892,-308.00826223,0.00016106,2]
[404070587,1769784642906,-3404.72,0.00016116,2]
[404070588,1769784642918,-2351.0,0.00016172,2]
[404070589,1769784642929,-530.17,0.00016199,2]
[404070590,1769784642939,-500.0,0.00016199,2]
[404070591,1769784642949,-385.18354163,0.00016199,2]
[404070592,1769784642961,-622.5575592,0.00016199,2]
[404070593,1769784642973,-500.0,0.00016199,2]
[404070594,1769784642983,-500.0,0.00016199,2]
[404070595,1769784642993,-162.0,0.000162,2]
[404070596,1769784643004,-479.1,0.00016206,2]
[404070597,1769784643015,-500.0,0.00016373,2]
[404070598,1769784643027,-500.0,0.00016373,2]
[404070599,1769784643037,-558.9380785,0.00016373,2]
[404070600,1769784643047,-164.62391136,0.00016373,2]
[404070601,1769784643058,-500.0,0.00016373,2]
[404070602,1769784643068,-500.0,0.00016373,2]
[404070603,1769784643078,-177.64323639,0.00016373,2]
[404070604,1769784643090,-500.0,0.00016373,2]
[404070605,1769784643101,-500.0,0.00016373,2]
[404070606,1769784643111,-160.21943413,0.00016373,2]
[404070607,1769784643123,-160.32431704,0.00016373,2]
[404070608,1769784643134,-500.0,0.00016373,2]
[404070609,1769784643149,-500.0,0.00016373,2]
[404070610,1769784643159,-500.0,0.00016373,2]
[404070612,1769784643172,-500.0,0.00016373,2]
[404070613,1769784643182,-500.0,0.00016373,2]
[404070615,1769784643192,-500.0,0.00016373,2]
[404070618,1769784643204,-225.37911043,0.00016373,2]
[404070621,1769784643214,-160.21744138,0.00016373,2]
[404070623,1769784643225,-500.0,0.00016373,2]
[404070624,1769784643237,-500.0,0.00016373,2]
[404070625,1769784643248,-500.0,0.00016373,2]
[404070627,1769784643259,-500.0,0.00016373,2]
[404070629,1769784643270,-500.0,0.00016373,2]
[404070630,1769784643280,-169.60462217,0.00016373,2]
[404070631,1769784643291,-500.0,0.00016373,2]
[404070632,1769784643302,-500.0,0.00016373,2]
[404070633,1769784643313,-568.87365999,0.00016373,2]
[404070634,1769784643324,-500.0,0.00016373,2]
[404070635,1769784643335,-239.55126374,0.00016373,2]
[404070636,1769784643346,-500.0,0.00016373,2]
[404070637,1769784643356,-500.0,0.00016373,2]
[404070638,1769784643367,-500.0,0.00016373,2]
[404070639,1769784643378,-503.15498018,0.00016373,2]
[404070640,1769784643388,-500.0,0.00016373,2]
[404070641,1769784643398,-500.0,0.00016373,2]
[404070642,1769784643411,-500.0,0.00016373,2]
[404070643,1769784643422,-500.0,0.00016373,2]
[404070644,1769784643432,-500.0,0.00016373,2]
[404070645,1769784643444,-500.0,0.00016373,2]
[404070646,1769784643456,-500.0,0.00016373,2]
[404070647,1769784643468,-166.21493216,0.00016373,2]
[404070648,1769784643478,-500.0,0.00016373,2]
[404070649,1769784643489,-500.0,0.00016373,2]
[404070650,1769784643499,-500.0,0.00016373,2]
[404070651,1769784643510,-500.0,0.00016373,2]
[404070652,1769784643520,-163.00594696,0.00016373,2]
[404070653,1769784643530,-500.0,0.00016373,2]
[404070654,1769784643540,-500.60369246,0.00016373,2]
[404070655,1769784643551,-217.57575976,0.00016373,2]
[404070656,1769784643560,-500.0,0.00016373,2]
[404070657,1769784643571,-357.52185889,0.00016388,2]
[404070658,1769784643581,-163.0,0.000164,2]
[404070659,1769784643591,-500.0,0.00016438,2]
[404070660,1769784643601,-2000.0,0.00016438,2]
[404070661,1769784643610,-500.0,0.00016438,2]
[404070662,1769784643621,-500.0,0.00016438,2]
[404070663,1769784643632,-431.19649282,0.00016438,2]
[404070664,1769784643645,-263.53,0.00016439,2]
[404070665,1769784643655,-772.81,0.00016505,2]
[404070666,1769784643665,-329.85,0.0001655,2]
[404070667,1769784643675,-165.61,0.00016712,2]
[404070668,1769784643685,-163.0,0.0001672,2]
[404070669,1769784643695,-2833.0,0.0001672,2]
[404070670,1769784643705,-163.0,0.0001672,2]
[404070671,1769784643716,-772.81,0.00016779,2]
[404070672,1769784643728,-183.75,0.00016779,2]
[404070673,1769784643739,-500.0,0.00016914,2]
[404070674,1769784643749,-500.0,0.00016914,2]
[404070675,1769784643760,-1000.0,0.00016921,2]
[404070676,1769784643770,-503.09870012,0.00016921,2]
[404070677,1769784643781,-500.4902994,0.00016921,2]
[404070678,1769784643791,-500.86269689,0.00016921,2]
[404070679,1769784643801,-1000.0,0.00016921,2]
[404070680,1769784643812,-203.98074386,0.00016921,2]
[404070681,1769784643822,-1000.0,0.00016921,2]
[404070682,1769784643833,-500.0,0.00016921,2]
[404070683,1769784643843,-504.68661395,0.00016921,2]
[404070684,1769784643854,-1000.0,0.00016921,2]
[404070685,1769784643864,-1000.0,0.00016921,2]
[404070686,1769784643874,-1000.0,0.00016921,2]
[404070687,1769784644408,-1000.0,0.00016921,2]
[404070688,1769784644431,-877.26188408,0.00016921,2]
[404070689,1769784644447,-459.6118856,0.00016921,2]
[404070690,1769784644458,-1000.0,0.00016921,2]
[404070691,1769784644469,-541.28684359,0.00016921,2]
[404070692,1769784644478,-1000.0,0.00016921,2]
[404070693,1769784644488,-1000.0,0.00016921,2]
[404070694,1769784644497,-1000.0,0.00016921,2]
[404070695,1769784644506,-500.0,0.00016921,2]
[404070696,1769784644516,-1000.81154381,0.00016921,2]
[404070697,1769784644525,-1000.28855452,0.00016921,2]
[404070698,1769784644534,-1000.79205538,0.00016921,2]
[404070699,1769784644543,-401.53067419,0.00016921,2]
[404070700,1769784644552,-804.05633745,0.00016921,2]
[404070701,1769784644561,-1000.0,0.00016921,2]
[404070702,1769784644571,-1000.0,0.00016921,2]
[404070703,1769784644581,-1000.91709451,0.00016921,2]
[404070704,1769784644590,-1009.36195064,0.00016921,2]
[404070705,1769784644599,-1000.0,0.00016921,2]
[404070707,1769784644608,-490.28446551,0.00016921,2]
[404070708,1769784644617,-1000.0,0.00016921,2]
[404070709,1769784644626,-1000.0,0.00016921,2]
[404070710,1769784644635,-1000.0,0.00016921,2]
[404070711,1769784644644,-736.0,0.00016974,2]
[404070712,1769784644654,-250.0,0.00017,2]
[404070713,1769784644664,-2833.0,0.0001704,2]
[404070714,1769784644673,-2833.0,0.0001704,2]
[404070715,1769784644683,-165.0,0.0001704,2]
[404070716,1769784644692,-772.81,0.00017053,2]
[404070717,1769784644702,-263.53,0.00017186,2]
[404070718,1769784644712,-13106.23026996,0.0001722,2]
[404070719,1769784644721,-19606.13665171,0.0001722,2]
[404070720,1769784644731,-26527.7925,0.0001722,2]
[404070721,1769784644740,-158.77663044,0.00017311,2]
[404070722,1769784644750,-772.81,0.00017327,2]
[404070723,1769784644759,-2828.0,0.0001736,2]
[404070724,1769784644769,-1000.8272521,0.00017468,2]
[404070725,1769784644779,-1505.10384072,0.00017468,2]
[404070726,1769784644788,-1500.0,0.00017468,2]
[404070727,1769784644797,-580.80754144,0.00017468,2]
[404070728,1769784644806,-1500.0,0.00017468,2]
[404070729,1769784644815,-1500.0,0.00017468,2]
[404070730,1769784644824,-1500.0,0.00017468,2]
[404070731,1769784644833,-1500.0,0.00017468,2]
[404070732,1769784644842,-1000.71065871,0.00017468,2]
[404070733,1769784644850,-1000.73878486,0.00017468,2]
[404070734,1769784644859,-206.11887871,0.00017468,2]
[404070735,1769784644868,-656.65111135,0.00017468,2]
[404070736,1769784644877,-1500.0,0.00017468,2]
[404070737,1769784644886,-1500.0,0.00017468,2]
[404070738,1769784644895,-1500.0,0.00017468,2]
[404070739,1769784644904,-200.0,0.00017556,2]
[404070740,1769784644914,-3490.571,0.0001759,2]
[404070741,1769784644923,-1409.0,0.0001759,2]
[404070742,1769784644933,-1334.0,0.0001759,2]
[404070743,1769784644942,-616.0,0.0001759,2]
[404070744,1769784644951,-1270.0,0.0001759,2]
[404070745,1769784644960,-1204.0,0.0001759,2]
[404070746,1769784644969,-567.0,0.0001759,2]
[404070747,1769784644979,-2444.0,0.0001759,2]
[404070748,1769784644988,-6575.0,0.0001759,2]
[404070749,1769784644998,-772.81,0.00017601,2]
[404070750,1769784645007,-250.0,0.00017659,2]
[404070751,1769784645016,-479.1,0.00017692,2]
[404070752,1769784645026,-1075.4,0.00017758,2]
[404070753,1769784645035,-3292.0,0.00017789,2]
[404070754,1769784645044,-614.4882477,0.000178,2]
[404070755,1769784645053,-109605.83836455,0.0001783,2]
[404070756,1769784645063,-150.13415369,0.00017873,2]
[404070757,1769784645072,-772.81,0.00017875,2]
[404070758,1769784645084,-329.85,0.00017897,2]
[404070759,1769784645097,-500.0,0.00017899,2]
[404070760,1769784645107,-500.0,0.00017899,2]
[404070761,1769784645117,-10000.0,0.000179,2]
[404070762,1769784645129,-2999.11075541,0.000179,2]
[404070763,1769784645138,-367.03008261,0.000179,2]
[404070764,1769784645148,-7902.65188866,0.000179,2]
[404070765,1769784645157,-263.53,0.00017933,2]
[404070766,1769784645167,-866.59131139,0.00017965,2]
[404070767,1769784645177,-500.0,0.00017973,2]
[404070768,1769784645186,-161.90727761,0.00017973,2]
[404070769,1769784645197,-333.51196878,0.00017973,2]
[404070770,1769784645207,-161.46714206,0.00017973,2]
[404070771,1769784645218,-161.13076084,0.00017973,2]
[404070772,1769784645228,-160.11295309,0.00017973,2]
[404070773,1769784645237,-500.78976485,0.00017973,2]
[404070774,1769784645247,-500.0,0.00017973,2]
[404070775,1769784645257,-500.0,0.00017973,2]
[404070776,1769784645267,-500.0,0.00017973,2]
[404070777,1769784645277,-500.0,0.00017973,2]
[404070779,1769784645286,-500.0,0.00017973,2]
[404070780,1769784645296,-500.0,0.00017973,2]
[404070781,1769784645307,-175.57287607,0.00017973,2]
[404070782,1769784645318,-163.36858583,0.00017973,2]
[404070783,1769784645327,-500.0,0.00017973,2]
[404070784,1769784645336,-500.0,0.00017973,2]
[404070785,1769784645346,-500.0,0.00017973,2]
[404070787,1769784645355,-151.06501544,0.00017973,2]
[404070789,1769784645364,-500.0,0.00017973,2]
[404070791,1769784645374,-500.0,0.00017973,2]
[404070793,1769784645383,-500.0,0.00017973,2]
[404070795,1769784645393,-500.63516671,0.00017973,2]
[404070796,1769784645403,-500.0,0.00017973,2]
[404070797,1769784645412,-500.0,0.00017973,2]
[404070798,1769784645426,-500.2342072,0.00017973,2]
[404070799,1769784645435,-160.13080306,0.00017973,2]
[404070800,1769784645445,-160.23001291,0.00017973,2]
[404070801,1769784645454,-500.0,0.00017973,2]
[404070803,1769784645464,-210.27851574,0.00017973,2]
[404070805,1769784645474,-432.02224032,0.00017973,2]
[404070807,1769784645483,-500.0,0.00017973,2]
[404070809,1769784645493,-500.0,0.00017973,2]
[404070811,1769784645503,-158.22969695,0.00017973,2]
[404070813,1769784645512,-500.0,0.00017973,2]
[404070815,1769784645522,-500.0,0.00017973,2]
[404070817,1769784645533,-500.0,0.00017973,2]
[404070819,1769784645543,-500.0,0.00017973,2]
[404070821,1769784645554,-208.33059439,0.00017973,2]
[404070823,1769784645564,-500.0,0.00017973,2]
[404070824,1769784645574,-160.00319068,0.00017973,2]
[404070825,1769784645585,-501.03562757,0.00017973,2]
[404070826,1769784645595,-512.27368738,0.00017973,2]
[404070827,1769784645605,-500.0,0.00017973,2]
[404070829,1769784645614,-392.26050896,0.00017973,2]
[404070831,1769784645624,-500.0,0.00017973,2]
[404070833,1769784645633,-162.07893444,0.00017973,2]
[404070835,1769784645644,-208.78313746,0.00017973,2]
[404070837,1769784645653,-509.35254647,0.00017973,2]
[404070840,1769784645665,-309.21369256,0.00017973,2]
[404070842,1769784645675,-162.64188199,0.00017973,2]
[404070844,1769784645685,-500.0,0.00017973,2]
[404070846,1769784645694,-500.0,0.00017973,2]
[404070848,1769784645704,-500.0,0.00017973,2]
[404070850,1769784645715,-150.0,0.00017973,2]
[404070852,1769784645723,-500.0,0.00017973,2]
[404070854,1769784645735,-500.0,0.00017973,2]
[404070856,1769784645746,-500.0,0.00017973,2]
[404070858,1769784645755,-500.0,0.00017973,2]
[404070860,1769784645766,-500.0,0.00017973,2]
[404070862,1769784645775,-500.0,0.00017973,2]
[404070864,1769784645784,-500.0,0.00017973,2]
[404070866,1769784645794,-340.31348241,0.00017973,2]
[404070868,1769784645804,-500.0,0.00017973,2]
[404070870,1769784645813,-500.0,0.00017973,2]
[404070872,1769784645823,-500.29869688,0.00017973,2]
[404070874,1769784645835,-500.0,0.00017973,2]
[404070876,1769784645844,-500.0,0.00017973,2]
[404070878,1769784645854,-500.0,0.00017973,2]
[404070880,1769784645863,-169.6863681,0.00017973,2]
[404070882,1769784645873,-500.0,0.00017973,2]
[404070885,1769784645883,-500.0,0.00017973,2]
[404070887,1769784645893,-500.0,0.00017973,2]
[404070889,1769784645902,-500.0,0.00017973,2]
[404070891,1769784645912,-501.19732692,0.00017973,2]
[404070892,1769784645925,-165.89161412,0.00017973,2]
[404070894,1769784645934,-500.42764262,0.00017973,2]
[404070896,1769784645943,-500.0,0.00017973,2]
[404070898,1769784645952,-500.0,0.00017973,2]
[404070900,1769784645961,-284.37159555,0.00017973,2]
[404070902,1769784645970,-500.0,0.00017973,2]
[404070904,1769784645979,-500.0,0.00017973,2]
[404070906,1769784645989,-500.0,0.00017973,2]
[404070908,1769784645999,-164.73666016,0.00017973,2]
[404070909,1769784646009,-530.17,0.00017989,2]
[404070910,1769784646018,-226.21679116,0.00017989,2]
[404070912,1769784646027,-500.0,0.00017989,2]
[404070914,1769784646037,-432.94207753,0.0001799,2]
[404070916,1769784646047,-432.94207753,0.0001799,2]
[404070918,1769784646056,-151.0,0.00017997,2]
[404070920,1769784646065,-151.0,0.00017997,2]
[404070922,1769784646075,-265.0,0.00017998,2]
[404070924,1769784646085,-1174.2940212,0.00017999,2]
[404070927,1769784646099,-530.17,0.00017999,2]
[404070929,1769784646113,-530.17,0.00017999,2]
[404070932,1769784646124,-530.17,0.00017999,2]
[404070934,1769784646134,-530.17,0.00017999,2]
[404070936,1769784646144,-530.17,0.00017999,2]
[404070938,1769784646155,-530.17,0.00017999,2]
[404070940,1769784646170,-530.17,0.00017999,2]
[404070942,1769784646179,-530.17,0.00017999,2]
[404070944,1769784646188,-530.17,0.00017999,2]
[404070946,1769784646198,-530.17,0.00017999,2]
[404070948,1769784646208,-530.17,0.00017999,2]
[404070949,1769784646217,-530.17,0.00017999,2]
[404070951,1769784646226,-530.17,0.00017999,2]
[404070952,1769784646235,-530.19392643,0.00017999,2]
[404070953,1769784646245,-300.0,0.00017999,2]
[404070954,1769784646254,-300.0,0.00017999,2]
[404070955,1769784646264,-300.0,0.00017999,2]
[404070956,1769784646273,-232.76010882,0.00017999,2]